[Event "Titled Tuesday Blitz May 24 Late 2022"]
[White "Hasangatin, Ramil"]
[Black "Pranav, V"]
[WhiteFideId "4122160"]
[BlackFideId "25060783"]
[WhiteElo "2399"]
[BlackElo "2349"]
[Result "0-1"]
[Round "07"]
[TimeControl "180+1"]
[Date "2022.05.24"]
[WhiteClock "0:00:01"]
[BlackClock "0:00:17"]

1. e4 {[%clk 0:03:00]}  e5 {[%clk 0:02:59]} 2. Nf3 {[%clk 0:03:00]}  Nf6 {[%clk 0:02:58]} 3. d3 {[%clk 0:02:59]}  Nc6 {[%clk 0:02:58]} 4. c3 {[%clk 0:02:59]}  d5 {[%clk 0:02:56]} 5. Nbd2 {[%clk 0:02:59]}  Bc5 {[%clk 0:02:54]} 6. b4 {[%clk 0:02:59]}  Bb6 {[%clk 0:02:54]} 7. Be2 {[%clk 0:02:59]}  O-O {[%clk 0:02:53]} 8. O-O {[%clk 0:02:58]}  Re8 {[%clk 0:02:46]} 9. Bb2 {[%clk 0:02:56]}  d4 {[%clk 0:02:44]} 10. Nc4 {[%clk 0:02:46]}  dxc3 {[%clk 0:02:41]} 11. Bxc3 {[%clk 0:02:44]}  Bd4 {[%clk 0:02:41]} 12. Bxd4 {[%clk 0:02:36]}  Nxd4 {[%clk 0:02:36]} 13. Ncxe5 {[%clk 0:02:31]}  a5 {[%clk 0:02:27]} 14. bxa5 {[%clk 0:02:25]}  Rxa5 {[%clk 0:02:27]} 15. Nxd4 {[%clk 0:02:20]}  Qxd4 {[%clk 0:02:24]} 16. Nc4 {[%clk 0:02:16]}  Ra8 {[%clk 0:02:22]} 17. a4 {[%clk 0:02:09]}  Be6 {[%clk 0:02:21]} 18. Nd2 {[%clk 0:02:07]}  Ra7 {[%clk 0:01:55]} 19. Nf3 {[%clk 0:02:06]}  Qd8 {[%clk 0:01:53]} 20. Re1 {[%clk 0:01:35]}  c5 {[%clk 0:01:51]} 21. Qb1 {[%clk 0:01:26]}  b6 {[%clk 0:01:44]} 22. Bd1 {[%clk 0:01:15]}  Bg4 {[%clk 0:01:42]} 23. Nd2 {[%clk 0:01:12]}  Rd7 {[%clk 0:01:32]} 24. Bc2 {[%clk 0:01:06]}  Be6 {[%clk 0:01:29]} 25. Qb2 {[%clk 0:01:05]}  Rd4 {[%clk 0:01:28]} 26. Reb1 {[%clk 0:01:03]}  c4 {[%clk 0:01:13]} 27. Nxc4 {[%clk 0:00:45]}  Bxc4 {[%clk 0:01:10]} 28. dxc4 {[%clk 0:00:46]}  Rxc4 {[%clk 0:01:11]} 29. e5 {[%clk 0:00:38]}  Ng4 {[%clk 0:01:10]} 30. Bb3 {[%clk 0:00:32]}  Rf4 {[%clk 0:01:08]} 31. Rf1 {[%clk 0:00:18]}  Nxe5 {[%clk 0:00:42]} 32. Qc3 {[%clk 0:00:18]}  h5 {[%clk 0:00:39]} 33. Rae1 {[%clk 0:00:17]}  Ng6 {[%clk 0:00:35]} 34. Rxe8+ {[%clk 0:00:16]}  Qxe8 {[%clk 0:00:36]} 35. g3 {[%clk 0:00:16]}  Rf6 {[%clk 0:00:36]} 36. Re1 {[%clk 0:00:13]}  Qd7 {[%clk 0:00:34]} 37. Qe3 {[%clk 0:00:11]}  Qf5 {[%clk 0:00:29]} 38. Bc4 {[%clk 0:00:07]}  Nh4 {[%clk 0:00:17]} 39. gxh4 {[%clk 0:00:04]}  Qg4+ {[%clk 0:00:17]} 40. Qg3 {[%clk 0:00:02]}  Qxc4 {[%clk 0:00:17]} 41. Kh1 {[%clk 0:00:01]}  Rg6 {[%clk 0:00:17]} 0-1


[Site "https://www.chess.com"]

[Event "Titled Tuesday Blitz May 24 Late 2022"]
[White "Holt, Conrad"]
[Black "Skliarov, Viktor"]
[WhiteFideId "2034387"]
[BlackFideId "14106736"]
[WhiteElo "2586"]
[BlackElo "2229"]
[Result "1-0"]
[Round "07"]
[TimeControl "180+1"]
[Date "2022.05.24"]
[WhiteClock "0:01:06"]
[BlackClock "0:00:01"]

1. d4 {[%clk 0:02:57]}  Nf6 {[%clk 0:02:56]} 2. c4 {[%clk 0:02:57]}  e6 {[%clk 0:02:52]} 3. Nc3 {[%clk 0:02:56]}  Bb4 {[%clk 0:02:52]} 4. Qc2 {[%clk 0:02:56]}  c5 {[%clk 0:02:50]} 5. dxc5 {[%clk 0:02:56]}  Na6 {[%clk 0:02:51]} 6. a3 {[%clk 0:02:54]}  Bxc3+ {[%clk 0:02:51]} 7. Qxc3 {[%clk 0:02:54]}  Nxc5 {[%clk 0:02:52]} 8. b4 {[%clk 0:02:52]}  Na4 {[%clk 0:02:52]} 9. Qc2 {[%clk 0:02:51]}  Nb6 {[%clk 0:02:49]} 10. c5 {[%clk 0:02:46]}  Nbd5 {[%clk 0:02:48]} 11. e4 {[%clk 0:02:46]}  Ne7 {[%clk 0:02:47]} 12. Nf3 {[%clk 0:02:43]}  O-O {[%clk 0:02:41]} 13. Bd3 {[%clk 0:02:41]}  Ng6 {[%clk 0:02:32]} 14. O-O {[%clk 0:02:33]}  b6 {[%clk 0:02:29]} 15. e5 {[%clk 0:02:29]}  Nd5 {[%clk 0:02:26]} 16. h4 {[%clk 0:02:14]}  Re8 {[%clk 0:01:32]} 17. h5 {[%clk 0:02:12]}  Nf8 {[%clk 0:01:32]} 18. h6 {[%clk 0:02:11]}  bxc5 {[%clk 0:01:16]} 19. hxg7 {[%clk 0:02:08]}  Ng6 {[%clk 0:01:16]} 20. Qxc5 {[%clk 0:02:06]}  Qb6 {[%clk 0:00:59]} 21. Bh6 {[%clk 0:01:55]}  Qxc5 {[%clk 0:00:54]} 22. bxc5 {[%clk 0:01:56]}  Bb7 {[%clk 0:00:54]} 23. Rab1 {[%clk 0:01:55]}  Bc6 {[%clk 0:00:54]} 24. Ng5 {[%clk 0:01:41]}  f5 {[%clk 0:00:21]} 25. exf6 {[%clk 0:01:28]}  Nxf6 {[%clk 0:00:21]} 26. f3 {[%clk 0:01:23]}  Rab8 {[%clk 0:00:21]} 27. Rfe1 {[%clk 0:01:15]}  Nf4 {[%clk 0:00:17]} 28. Nxh7 {[%clk 0:01:13]}  Nh3+ {[%clk 0:00:13]} 29. Kh2 {[%clk 0:01:12]}  Nxh7 {[%clk 0:00:12]} 30. Kxh3 {[%clk 0:01:12]}  Nf6 {[%clk 0:00:09]} 31. Kh4 {[%clk 0:01:10]}  Kf7 {[%clk 0:00:10]} 32. Kg5 {[%clk 0:01:10]}  Ke7 {[%clk 0:00:06]} 33. Kg6 {[%clk 0:01:08]}  e5 {[%clk 0:00:01]} 34. Rxe5+ {[%clk 0:01:06]} 1-0


[Site "https://www.chess.com"]

[Event "Titled Tuesday Blitz May 24 Late 2022"]
[White "Ibarra Jerez, Jose Carlos"]
[Black "Maghsoodloo, Parham"]
[WhiteFideId "2226332"]
[BlackFideId "12539929"]
[WhiteElo "2626"]
[BlackElo "2630"]
[Result "1/2-1/2"]
[Round "07"]
[TimeControl "180+1"]
[Date "2022.05.24"]
[WhiteClock "0:00:12"]
[BlackClock "0:00:04"]

1. e4 {[%clk 0:03:00]}  c5 {[%clk 0:02:58]} 2. Nc3 {[%clk 0:03:01]}  d6 {[%clk 0:02:55]} 3. d4 {[%clk 0:03:00]}  cxd4 {[%clk 0:02:56]} 4. Qxd4 {[%clk 0:03:01]}  Nc6 {[%clk 0:02:56]} 5. Qd2 {[%clk 0:03:02]}  g6 {[%clk 0:02:56]} 6. b3 {[%clk 0:03:02]}  Bh6 {[%clk 0:02:55]} 7. f4 {[%clk 0:03:03]}  f5 {[%clk 0:02:56]} 8. Bb2 {[%clk 0:03:02]}  Nf6 {[%clk 0:02:56]} 9. Bd3 {[%clk 0:03:02]}  fxe4 {[%clk 0:02:51]} 10. Nxe4 {[%clk 0:03:01]}  Nxe4 {[%clk 0:02:52]} 11. Bxe4 {[%clk 0:03:01]}  Rf8 {[%clk 0:02:52]} 12. Ne2 {[%clk 0:02:47]}  Bg4 {[%clk 0:02:50]} 13. g3 {[%clk 0:02:45]}  a5 {[%clk 0:02:35]} 14. h3 {[%clk 0:02:34]}  Bf5 {[%clk 0:02:32]} 15. Bxf5 {[%clk 0:02:27]}  Rxf5 {[%clk 0:02:31]} 16. g4 {[%clk 0:02:26]}  Rc5 {[%clk 0:02:31]} 17. c4 {[%clk 0:02:03]}  b5 {[%clk 0:02:05]} 18. Nd4 {[%clk 0:01:45]}  Re5+ {[%clk 0:00:43]} 19. Kf1 {[%clk 0:01:38]}  Nxd4 {[%clk 0:00:42]} 20. Bxd4 {[%clk 0:01:37]}  Re4 {[%clk 0:00:42]} 21. g5 {[%clk 0:01:30]}  e5 {[%clk 0:00:41]} 22. Re1 {[%clk 0:01:24]}  Rxe1+ {[%clk 0:00:34]} 23. Qxe1 {[%clk 0:01:24]}  Bg7 {[%clk 0:00:30]} 24. Rh2 {[%clk 0:00:38]}  bxc4 {[%clk 0:00:25]} 25. fxe5 {[%clk 0:00:33]}  d5 {[%clk 0:00:19]} 26. bxc4 {[%clk 0:00:31]}  dxc4 {[%clk 0:00:18]} 27. Qe4 {[%clk 0:00:32]}  Ra6 {[%clk 0:00:16]} 28. Qb7 {[%clk 0:00:19]}  Qxd4 {[%clk 0:00:14]} 29. Qc8+ {[%clk 0:00:17]}  Ke7 {[%clk 0:00:13]} 30. Qb7+ {[%clk 0:00:17]}  Qd7 {[%clk 0:00:08]} 31. Qxa6 {[%clk 0:00:17]}  Qd1+ {[%clk 0:00:07]} 32. Kg2 {[%clk 0:00:17]}  Qc2+ {[%clk 0:00:06]} 33. Kg1 {[%clk 0:00:15]}  Qb1+ {[%clk 0:00:06]} 34. Kg2 {[%clk 0:00:15]}  Qxa2+ {[%clk 0:00:07]} 35. Kf3 {[%clk 0:00:11]}  Qxh2 {[%clk 0:00:04]} 36. Qd6+ {[%clk 0:00:12]}  Ke8 {[%clk 0:00:03]} 37. Qe6+ {[%clk 0:00:11]}  Kf8 {[%clk 0:00:02]} 38. Qd6+ {[%clk 0:00:11]}  Ke8 {[%clk 0:00:03]} 39. Qe6+ {[%clk 0:00:12]}  Kf8 {[%clk 0:00:04]} 40. Qd6+ {[%clk 0:00:12]}  Kg8 {[%clk 0:00:04]} 41. Qe6+ {[%clk 0:00:12]}  Kf8 {[%clk 0:00:04]} 1/2-1/2


[Site "https://www.chess.com"]

[Event "Titled Tuesday Blitz May 24 Late 2022"]
[White "Jacobson, Brandon"]
[Black "Steinberg, Nitzan"]
[WhiteFideId "30901561"]
[BlackFideId "2801795"]
[WhiteElo "2362"]
[BlackElo "2471"]
[Result "0-1"]
[Round "07"]
[TimeControl "180+1"]
[Date "2022.05.24"]
[WhiteClock "0:00:03"]
[BlackClock "0:00:06"]

1. Nf3 {[%clk 0:03:00]}  d5 {[%clk 0:02:59]} 2. e3 {[%clk 0:03:01]}  Nf6 {[%clk 0:02:59]} 3. c4 {[%clk 0:03:02]}  c6 {[%clk 0:03:00]} 4. Nc3 {[%clk 0:03:03]}  e6 {[%clk 0:03:00]} 5. b3 {[%clk 0:03:04]}  Nbd7 {[%clk 0:03:01]} 6. Bb2 {[%clk 0:03:04]}  Bd6 {[%clk 0:03:01]} 7. Qc2 {[%clk 0:03:05]}  O-O {[%clk 0:03:00]} 8. Rg1 {[%clk 0:03:06]}  e5 {[%clk 0:02:36]} 9. cxd5 {[%clk 0:03:06]}  cxd5 {[%clk 0:02:32]} 10. Nb5 {[%clk 0:03:06]}  Bb8 {[%clk 0:02:32]} 11. Rc1 {[%clk 0:03:07]}  d4 {[%clk 0:02:08]} 12. Ba3 {[%clk 0:02:56]}  Re8 {[%clk 0:02:04]} 13. Nc7 {[%clk 0:02:56]}  d3 {[%clk 0:02:00]} 14. Qc3 {[%clk 0:02:38]}  Bxc7 {[%clk 0:01:56]} 15. Qxc7 {[%clk 0:02:39]}  Qxc7 {[%clk 0:01:54]} 16. Rxc7 {[%clk 0:02:39]}  e4 {[%clk 0:01:55]} 17. Nd4 {[%clk 0:02:39]}  Nd5 {[%clk 0:01:54]} 18. Rc1 {[%clk 0:02:36]}  a6 {[%clk 0:01:45]} 19. f3 {[%clk 0:02:36]}  Ne5 {[%clk 0:01:40]} 20. fxe4 {[%clk 0:02:29]}  Nf6 {[%clk 0:01:40]} 21. Nf3 {[%clk 0:02:29]}  Nc6 {[%clk 0:01:23]} 22. Bxd3 {[%clk 0:02:20]}  Nxe4 {[%clk 0:01:24]} 23. Ke2 {[%clk 0:02:14]}  Bg4 {[%clk 0:01:23]} 24. h3 {[%clk 0:02:10]}  Bf5 {[%clk 0:01:17]} 25. g4 {[%clk 0:02:09]}  Bd7 {[%clk 0:01:14]} 26. Rc4 {[%clk 0:02:01]}  Nf6 {[%clk 0:01:11]} 27. Rgc1 {[%clk 0:01:41]}  Rad8 {[%clk 0:01:11]} 28. Bf5 {[%clk 0:01:31]}  Bxf5 {[%clk 0:00:59]} 29. gxf5 {[%clk 0:01:32]}  Ne4 {[%clk 0:00:58]} 30. Rg1 {[%clk 0:01:24]}  h5 {[%clk 0:00:49]} 31. d3 {[%clk 0:01:02]}  Nd6 {[%clk 0:00:35]} 32. Bxd6 {[%clk 0:01:02]}  Rxd6 {[%clk 0:00:36]} 33. Rh4 {[%clk 0:01:00]}  Rh6 {[%clk 0:00:31]} 34. Rg5 {[%clk 0:00:56]}  Ne7 {[%clk 0:00:29]} 35. Re4 {[%clk 0:00:38]}  Kf8 {[%clk 0:00:21]} 36. Nd4 {[%clk 0:00:31]}  a5 {[%clk 0:00:15]} 37. Kd2 {[%clk 0:00:22]}  b6 {[%clk 0:00:14]} 38. Rh4 {[%clk 0:00:16]}  g6 {[%clk 0:00:11]} 39. fxg6 {[%clk 0:00:11]}  fxg6 {[%clk 0:00:12]} 40. Re4 {[%clk 0:00:11]}  Rh7 {[%clk 0:00:08]} 41. Rge5 {[%clk 0:00:11]}  Rc8 {[%clk 0:00:02]} 42. Ne6+ {[%clk 0:00:09]}  Ke8 {[%clk 0:00:02]} 43. Ng5 {[%clk 0:00:09]}  Rg7 {[%clk 0:00:02]} 44. d4 {[%clk 0:00:09]}  a4 {[%clk 0:00:02]} 45. d5 {[%clk 0:00:09]}  Kd7 {[%clk 0:00:03]} 46. Ne6 {[%clk 0:00:04]}  Rf7 {[%clk 0:00:03]} 47. Nf4 {[%clk 0:00:05]}  Nf5 {[%clk 0:00:02]} 48. Re6 {[%clk 0:00:03]}  axb3 {[%clk 0:00:03]} 49. axb3 {[%clk 0:00:04]}  Nd6 {[%clk 0:00:03]} 50. Rb4 {[%clk 0:00:04]}  b5 {[%clk 0:00:04]} 51. Nxg6 {[%clk 0:00:05]}  Rf2+ {[%clk 0:00:04]} 52. Kd3 {[%clk 0:00:05]}  Rcc2 {[%clk 0:00:05]} 53. Ne5+ {[%clk 0:00:05]}  Kc7 {[%clk 0:00:05]} 54. Re7+ {[%clk 0:00:05]}  Kb6 {[%clk 0:00:05]} 55. Nc4+ {[%clk 0:00:04]}  Kc5 {[%clk 0:00:04]} 56. Nxd6 {[%clk 0:00:04]}  Kxb4 {[%clk 0:00:04]} 57. Ne4 {[%clk 0:00:03]}  Rh2 {[%clk 0:00:04]} 58. d6 {[%clk 0:00:04]}  Rc1 {[%clk 0:00:04]} 59. Nf6 {[%clk 0:00:02]}  Rd1+ {[%clk 0:00:04]} 60. Ke4 {[%clk 0:00:02]}  Rxd6 {[%clk 0:00:05]} 61. Nxh5 {[%clk 0:00:03]}  Kxb3 {[%clk 0:00:05]} 62. Nf4 {[%clk 0:00:03]}  b4 {[%clk 0:00:06]} 63. Rb7 {[%clk 0:00:04]}  Ka3 {[%clk 0:00:05]} 64. Ra7+ {[%clk 0:00:04]}  Kb2 {[%clk 0:00:06]} 65. Nd3+ {[%clk 0:00:05]}  Kc3 {[%clk 0:00:05]} 66. Rc7+ {[%clk 0:00:05]}  Kb3 {[%clk 0:00:04]} 67. Rb7 {[%clk 0:00:05]}  Rxh3 {[%clk 0:00:03]} 68. Rxb4+ {[%clk 0:00:03]}  Kc3 {[%clk 0:00:04]} 69. Rd4 {[%clk 0:00:03]}  Rxd4+ {[%clk 0:00:04]} 70. exd4 {[%clk 0:00:03]}  Rxd3 {[%clk 0:00:05]} 71. d5 {[%clk 0:00:03]}  Kc4 {[%clk 0:00:06]} 0-1


[Site "https://www.chess.com"]

[Event "Titled Tuesday Blitz May 24 Late 2022"]
[White "Janaszak, Dawid"]
[Black "Shirov, Alexei"]
[WhiteFideId "1119206"]
[BlackFideId "2209390"]
[WhiteElo "2199"]
[BlackElo "2678"]
[Result "0-1"]
[Round "07"]
[TimeControl "180+1"]
[Date "2022.05.24"]
[WhiteClock "0:00:03"]
[BlackClock "0:00:05"]

1. e4 {[%clk 0:03:00]}  e5 {[%clk 0:02:59]} 2. Nf3 {[%clk 0:03:01]}  Nc6 {[%clk 0:02:59]} 3. d4 {[%clk 0:03:01]}  exd4 {[%clk 0:02:58]} 4. Nxd4 {[%clk 0:03:02]}  Bc5 {[%clk 0:02:55]} 5. Nb3 {[%clk 0:03:02]}  Bb4+ {[%clk 0:02:53]} 6. c3 {[%clk 0:02:40]}  Be7 {[%clk 0:02:52]} 7. Bf4 {[%clk 0:02:37]}  Nf6 {[%clk 0:02:47]} 8. e5 {[%clk 0:02:34]}  Ne4 {[%clk 0:02:42]} 9. Qd5 {[%clk 0:02:25]}  Ng5 {[%clk 0:02:39]} 10. N1d2 {[%clk 0:02:09]}  O-O {[%clk 0:02:35]} 11. O-O-O {[%clk 0:02:07]}  a5 {[%clk 0:02:27]} 12. Bd3 {[%clk 0:01:56]}  a4 {[%clk 0:02:26]} 13. Nd4 {[%clk 0:01:49]}  Nxd4 {[%clk 0:02:17]} 14. Qxd4 {[%clk 0:01:42]}  a3 {[%clk 0:02:17]} 15. b3 {[%clk 0:01:39]}  c5 {[%clk 0:02:15]} 16. Qe3 {[%clk 0:01:36]}  Ne6 {[%clk 0:02:02]} 17. Qe4 {[%clk 0:01:30]}  g6 {[%clk 0:01:57]} 18. Bh6 {[%clk 0:01:30]}  Re8 {[%clk 0:01:54]} 19. h4 {[%clk 0:01:30]}  d5 {[%clk 0:01:48]} 20. Qf3 {[%clk 0:01:27]}  Qa5 {[%clk 0:01:43]} 21. Bc2 {[%clk 0:01:05]}  c4 {[%clk 0:01:30]} 22. h5 {[%clk 0:01:00]}  cxb3 {[%clk 0:01:13]} 23. Nxb3 {[%clk 0:01:01]}  Qc7 {[%clk 0:01:12]} 24. hxg6 {[%clk 0:00:59]}  fxg6 {[%clk 0:01:11]} 25. Bd2 {[%clk 0:00:50]}  Ng5 {[%clk 0:01:02]} 26. Qg3 {[%clk 0:00:42]}  Ne4 {[%clk 0:01:02]} 27. Bxe4 {[%clk 0:00:41]}  dxe4 {[%clk 0:01:02]} 28. Rxh7 {[%clk 0:00:36]}  Bf5 {[%clk 0:00:20]} 29. Rdh1 {[%clk 0:00:35]}  Rac8 {[%clk 0:00:20]} 30. Qh2 {[%clk 0:00:22]}  Qc4 {[%clk 0:00:15]} 31. Qh6 {[%clk 0:00:20]}  Bf8 {[%clk 0:00:14]} 32. Rh8+ {[%clk 0:00:17]}  Kf7 {[%clk 0:00:14]} 33. Rh7+ {[%clk 0:00:13]}  Ke6 {[%clk 0:00:13]} 34. Qg5 {[%clk 0:00:12]}  Kxe5 {[%clk 0:00:11]} 35. f4+ {[%clk 0:00:06]}  Ke6 {[%clk 0:00:08]} 36. R7h6 {[%clk 0:00:04]}  e3 {[%clk 0:00:08]} 37. Rxg6+ {[%clk 0:00:03]}  Bxg6 {[%clk 0:00:07]} 38. Qxg6+ {[%clk 0:00:04]}  Kd7 {[%clk 0:00:07]} 39. Rh7+ {[%clk 0:00:03]}  Be7 {[%clk 0:00:07]} 40. Qf5+ {[%clk 0:00:03]}  Kd8 {[%clk 0:00:06]} 41. Bxe3 {[%clk 0:00:02]}  Qxc3+ {[%clk 0:00:06]} 42. Kd1 {[%clk 0:00:03]}  Qxe3 {[%clk 0:00:06]} 43. Qd5+ {[%clk 0:00:03]}  Kc7 {[%clk 0:00:06]} 44. Qe5+ {[%clk 0:00:03]}  Qxe5 {[%clk 0:00:05]} 0-1


[Site "https://www.chess.com"]

[Event "Titled Tuesday Blitz May 24 Late 2022"]
[White "Jorquera, Marcelo"]
[Black "Gomez Dieguez, David"]
[WhiteFideId "3401197"]
[BlackFideId "22223630"]
[WhiteElo "2136"]
[BlackElo "2115"]
[Result "1-0"]
[Round "07"]
[TimeControl "180+1"]
[Date "2022.05.25"]
[WhiteClock "0:00:35"]
[BlackClock "0:01:13"]

1. e4 {[%clk 0:02:58]}  c6 {[%clk 0:02:59]} 2. Nc3 {[%clk 0:02:56]}  d5 {[%clk 0:03:00]} 3. Nf3 {[%clk 0:02:56]}  dxe4 {[%clk 0:03:00]} 4. Nxe4 {[%clk 0:02:55]}  Nf6 {[%clk 0:03:01]} 5. Qe2 {[%clk 0:02:53]}  Nxe4 {[%clk 0:02:59]} 6. Qxe4 {[%clk 0:02:53]}  Nd7 {[%clk 0:02:59]} 7. Bc4 {[%clk 0:02:52]}  Nf6 {[%clk 0:02:58]} 8. Ne5 {[%clk 0:02:48]}  e6 {[%clk 0:02:58]} 9. Qe2 {[%clk 0:02:41]}  Bd6 {[%clk 0:02:56]} 10. O-O {[%clk 0:02:36]}  O-O {[%clk 0:02:55]} 11. d4 {[%clk 0:02:35]}  b5 {[%clk 0:02:54]} 12. Bd3 {[%clk 0:02:11]}  Qc7 {[%clk 0:02:54]} 13. Bg5 {[%clk 0:02:03]}  Be7 {[%clk 0:02:31]} 14. Rfe1 {[%clk 0:01:54]}  a6 {[%clk 0:02:28]} 15. c3 {[%clk 0:01:51]}  Bb7 {[%clk 0:02:23]} 16. a4 {[%clk 0:01:37]}  h6 {[%clk 0:02:23]} 17. Bh4 {[%clk 0:01:35]}  Qd6 {[%clk 0:02:08]} 18. Bxf6 {[%clk 0:01:06]}  Bxf6 {[%clk 0:02:07]} 19. Qe4 {[%clk 0:01:04]}  g6 {[%clk 0:01:59]} 20. Nxg6 {[%clk 0:00:58]}  fxg6 {[%clk 0:01:47]} 21. Qxg6+ {[%clk 0:00:58]}  Bg7 {[%clk 0:01:48]} 22. Qh7+ {[%clk 0:00:48]}  Kf7 {[%clk 0:01:48]} 23. Bg6+ {[%clk 0:00:47]}  Kf6 {[%clk 0:01:43]} 24. Bh5 {[%clk 0:00:46]}  Rf7 {[%clk 0:01:13]} 25. Qg6+ {[%clk 0:00:44]}  Ke7 {[%clk 0:01:13]} 26. Qxf7+ {[%clk 0:00:44]}  Kd8 {[%clk 0:01:14]} 27. Qxg7 {[%clk 0:00:40]}  c5 {[%clk 0:01:14]} 28. Qxb7 {[%clk 0:00:35]}  Rb8 {[%clk 0:01:13]} 1-0


[Site "https://www.chess.com"]

[Event "Titled Tuesday Blitz May 24 Late 2022"]
[White "Karttunen, Mika"]
[Black "Demchenko, Anton"]
[WhiteFideId "502081"]
[BlackFideId "4160258"]
[WhiteElo "2343"]
[BlackElo "2539"]
[Result "0-1"]
[Round "07"]
[TimeControl "180+1"]
[Date "2022.05.24"]
[WhiteClock "0:00:03"]
[BlackClock "0:00:05"]

1. c4 {[%clk 0:03:00]}  e5 {[%clk 0:02:56]} 2. Nc3 {[%clk 0:02:59]}  Nc6 {[%clk 0:02:56]} 3. g3 {[%clk 0:02:58]}  Bc5 {[%clk 0:02:55]} 4. Bg2 {[%clk 0:02:58]}  d6 {[%clk 0:02:56]} 5. Nf3 {[%clk 0:02:57]}  a6 {[%clk 0:02:57]} 6. d3 {[%clk 0:02:54]}  Ba7 {[%clk 0:02:56]} 7. O-O {[%clk 0:02:54]}  Nge7 {[%clk 0:02:54]} 8. b3 {[%clk 0:02:36]}  O-O {[%clk 0:02:54]} 9. Bb2 {[%clk 0:02:36]}  h6 {[%clk 0:02:51]} 10. e4 {[%clk 0:02:35]}  f5 {[%clk 0:02:50]} 11. exf5 {[%clk 0:02:28]}  Bxf5 {[%clk 0:02:45]} 12. Nh4 {[%clk 0:02:21]}  Be6 {[%clk 0:02:40]} 13. Nd5 {[%clk 0:02:16]}  Qd7 {[%clk 0:02:39]} 14. Nxe7+ {[%clk 0:02:12]}  Nxe7 {[%clk 0:02:38]} 15. d4 {[%clk 0:02:09]}  Bg4 {[%clk 0:02:07]} 16. Qd2 {[%clk 0:01:40]}  Bxd4 {[%clk 0:01:30]} 17. Bxd4 {[%clk 0:01:34]}  exd4 {[%clk 0:01:31]} 18. Qxd4 {[%clk 0:01:14]}  g5 {[%clk 0:01:08]} 19. h3 {[%clk 0:01:12]}  Bh5 {[%clk 0:01:00]} 20. g4 {[%clk 0:01:09]}  Bf7 {[%clk 0:01:00]} 21. Nf5 {[%clk 0:01:02]}  Nxf5 {[%clk 0:01:00]} 22. gxf5 {[%clk 0:01:02]}  Qxf5 {[%clk 0:00:52]} 23. f4 {[%clk 0:00:57]}  Rae8 {[%clk 0:00:44]} 24. fxg5 {[%clk 0:00:54]}  Qxg5 {[%clk 0:00:45]} 25. Rf4 {[%clk 0:00:38]}  Qe5 {[%clk 0:00:35]} 26. Qxe5 {[%clk 0:00:36]}  dxe5 {[%clk 0:00:30]} 27. Rg4+ {[%clk 0:00:36]}  Kh8 {[%clk 0:00:29]} 28. Bxb7 {[%clk 0:00:37]}  a5 {[%clk 0:00:19]} 29. Rf1 {[%clk 0:00:32]}  Bg8 {[%clk 0:00:18]} 30. Rxf8 {[%clk 0:00:27]}  Rxf8 {[%clk 0:00:18]} 31. Be4 {[%clk 0:00:26]}  Rf6 {[%clk 0:00:16]} 32. Rg6 {[%clk 0:00:26]}  Rxg6+ {[%clk 0:00:16]} 33. Bxg6 {[%clk 0:00:26]}  Kg7 {[%clk 0:00:17]} 34. Be4 {[%clk 0:00:26]}  Kf6 {[%clk 0:00:17]} 35. Kf2 {[%clk 0:00:27]}  c5 {[%clk 0:00:13]} 36. Kg3 {[%clk 0:00:26]}  Be6 {[%clk 0:00:13]} 37. h4 {[%clk 0:00:26]}  Bf5 {[%clk 0:00:13]} 38. Kf3 {[%clk 0:00:25]}  Bd7 {[%clk 0:00:04]} 39. a3 {[%clk 0:00:22]}  Be6 {[%clk 0:00:03]} 40. Bd3 {[%clk 0:00:19]}  Bf5 {[%clk 0:00:03]} 41. Be4 {[%clk 0:00:19]}  Bd7 {[%clk 0:00:02]} 42. Ke3 {[%clk 0:00:17]}  Be6 {[%clk 0:00:03]} 43. Bd3 {[%clk 0:00:17]}  Bg4 {[%clk 0:00:02]} 44. Bc2 {[%clk 0:00:15]}  Bf5 {[%clk 0:00:03]} 45. Be4 {[%clk 0:00:15]}  Ke6 {[%clk 0:00:03]} 46. Kf3 {[%clk 0:00:15]}  Bh3 {[%clk 0:00:03]} 47. Ke3 {[%clk 0:00:14]}  Kf6 {[%clk 0:00:03]} 48. Kf3 {[%clk 0:00:14]}  Be6 {[%clk 0:00:03]} 49. Ke3 {[%clk 0:00:14]}  Bf7 {[%clk 0:00:03]} 50. Kf3 {[%clk 0:00:14]}  Bh5+ {[%clk 0:00:03]} 51. Ke3 {[%clk 0:00:13]}  Bd1 {[%clk 0:00:03]} 52. b4 {[%clk 0:00:11]}  axb4 {[%clk 0:00:03]} 53. axb4 {[%clk 0:00:12]}  cxb4 {[%clk 0:00:04]} 54. c5 {[%clk 0:00:13]}  Ke6 {[%clk 0:00:04]} 55. Kd2 {[%clk 0:00:12]}  Ba4 {[%clk 0:00:04]} 56. Kd3 {[%clk 0:00:12]}  Bb5+ {[%clk 0:00:05]} 57. Kc2 {[%clk 0:00:12]}  Bc4 {[%clk 0:00:05]} 58. Kd2 {[%clk 0:00:12]}  Bd5 {[%clk 0:00:05]} 59. Bd3 {[%clk 0:00:10]}  Kd7 {[%clk 0:00:05]} 60. Bb5+ {[%clk 0:00:10]}  Kc7 {[%clk 0:00:06]} 61. Ke3 {[%clk 0:00:10]}  b3 {[%clk 0:00:06]} 62. Kd2 {[%clk 0:00:10]}  e4 {[%clk 0:00:06]} 63. Kc3 {[%clk 0:00:10]}  Kb7 {[%clk 0:00:03]} 64. Ba4 {[%clk 0:00:10]}  Ka6 {[%clk 0:00:02]} 65. Bd7 {[%clk 0:00:07]}  Ka5 {[%clk 0:00:03]} 66. Be8 {[%clk 0:00:06]}  Be6 {[%clk 0:00:02]} 67. c6 {[%clk 0:00:06]}  Kb6 {[%clk 0:00:02]} 68. Bd7 {[%clk 0:00:06]}  Bd5 {[%clk 0:00:02]} 69. Be8 {[%clk 0:00:05]}  Bxc6 {[%clk 0:00:02]} 70. Bf7 {[%clk 0:00:03]}  Ba4 {[%clk 0:00:02]} 71. Bd5 {[%clk 0:00:04]}  e3 {[%clk 0:00:02]} 72. Be4 {[%clk 0:00:03]}  Kc5 {[%clk 0:00:03]} 73. Kd3 {[%clk 0:00:03]}  b2 {[%clk 0:00:03]} 74. Kxe3 {[%clk 0:00:04]}  Kb4 {[%clk 0:00:03]} 75. Bb1 {[%clk 0:00:04]}  Kc3 {[%clk 0:00:03]} 76. Kf4 {[%clk 0:00:03]}  Bc2 {[%clk 0:00:04]} 77. Ba2 {[%clk 0:00:03]}  Kb4 {[%clk 0:00:04]} 78. Ke3 {[%clk 0:00:02]}  Ka3 {[%clk 0:00:04]} 79. Kd2 {[%clk 0:00:03]}  Kxa2 {[%clk 0:00:05]} 0-1


[Site "https://www.chess.com"]

[Event "Titled Tuesday Blitz May 24 Late 2022"]
[White "Korchmar, Vasiliy"]
[Black "Turutin, Alexander"]
[WhiteFideId "24131750"]
[BlackFideId "4180623"]
[WhiteElo "2370"]
[BlackElo "2402"]
[Result "1-0"]
[Round "07"]
[TimeControl "180+1"]
[Date "2022.05.25"]
[WhiteClock "0:02:18"]
[BlackClock "0:00:53"]

1. e4 {[%clk 0:03:00]}  c6 {[%clk 0:02:59]} 2. d4 {[%clk 0:02:57]}  d5 {[%clk 0:03:00]} 3. e5 {[%clk 0:02:56]}  Bf5 {[%clk 0:03:00]} 4. c4 {[%clk 0:02:55]}  e6 {[%clk 0:02:55]} 5. Nc3 {[%clk 0:02:55]}  dxc4 {[%clk 0:02:52]} 6. Bxc4 {[%clk 0:02:55]}  Ne7 {[%clk 0:02:49]} 7. Nge2 {[%clk 0:02:54]}  Nd5 {[%clk 0:02:49]} 8. Ng3 {[%clk 0:02:54]}  Bg6 {[%clk 0:02:43]} 9. h4 {[%clk 0:02:54]}  h6 {[%clk 0:02:43]} 10. h5 {[%clk 0:02:54]}  Bh7 {[%clk 0:02:44]} 11. O-O {[%clk 0:02:55]}  Be7 {[%clk 0:01:59]} 12. Qg4 {[%clk 0:02:45]}  Rg8 {[%clk 0:01:12]} 13. f4 {[%clk 0:02:39]}  Nb6 {[%clk 0:01:10]} 14. Bb3 {[%clk 0:02:28]}  Qxd4+ {[%clk 0:01:10]} 15. Kh2 {[%clk 0:02:29]}  N8d7 {[%clk 0:01:10]} 16. Rd1 {[%clk 0:02:27]}  Qb4 {[%clk 0:01:02]} 17. Bd2 {[%clk 0:02:28]}  Nc4 {[%clk 0:00:53]} 18. Nd5 {[%clk 0:02:18]} 1-0


[Site "https://www.chess.com"]